fUSD/lending_fUSD_20250814
["ID","MTS","AMOUNT","RATE_DAILY","PERIOD"]
[379237820,1755208235291,-11547.29940262,0.00025285,2]
[379237821,1755208235301,-157.65,0.00025293,2]
[379237822,1755208235311,-379.94766,0.000253,2]
[379237823,1755208235321,-151.0,0.00025311,2]
[379237824,1755208235331,-151.0,0.00025311,2]
[379237825,1755208235341,-600.0,0.00025311,2]
[379237826,1755208235351,-150.0,0.00025317,4]
[379237827,1755208235361,-150.0,0.00025317,4]
[379237828,1755208235371,-150.0,0.00025317,4]
[379237829,1755208235381,-16093.7130027,0.00025322,2]
[379237830,1755208235391,-226.40485419,0.00025329,2]
[379237831,1755208235401,-150.0,0.00025332,4]
[379237832,1755208235411,-150.0,0.00025342,4]
[379237833,1755208235421,-150.0,0.00025353,4]
[379237834,1755208235432,-150.0,0.00025363,4]
[379237835,1755208235442,-150.0,0.00025363,4]
[379237836,1755208235451,-473.85699361,0.00025374,2]
[379237837,1755208235461,-4722.90784018,0.00025385,2]
[379237838,1755208235471,-150.0,0.00025389,4]
[379237839,1755208235480,-150.0,0.0002539,4]
[379237840,1755208235491,-5513.0,0.000254,5]
[379237841,1755208235501,-150.0,0.00025415,4]
[379237842,1755208235511,-150.0,0.00025415,4]
[379237843,1755208235521,-150.0,0.00025415,4]
[379237844,1755208235531,-150.0,0.00025425,4]
[379237845,1755208235541,-150.0,0.00025431,4]
[379237846,1755208235551,-150.0,0.00025444,4]
[379237847,1755208235560,-150.0,0.00025448,4]
[379237848,1755208235570,-150.0,0.00025454,4]
[379237849,1755208235580,-150.0,0.00025461,4]
[379237850,1755208235590,-150.0,0.00025475,4]
[379237851,1755208235600,-468.3,0.00025479,2]
[379237852,1755208235610,-468.3,0.00025479,2]
[379237853,1755208235620,-468.3,0.00025479,2]
[379237854,1755208235630,-468.3,0.00025479,2]
[379237855,1755208235639,-251.90292739,0.00025486,2]
[379237856,1755208235649,-517.7907546,0.00025487,2]
[379237857,1755208235659,-150.0,0.00025488,4]
[379237858,1755208235668,-150.0,0.00025497,4]
[379237859,1755208235678,-150.0,0.00025506,4]
[379237860,1755208235688,-11547.29940262,0.00025521,2]
[379237861,1755208235698,-150.0,0.00025533,4]
[379237862,1755208235708,-150.0,0.00025545,4]
[379237863,1755208235718,-150.0,0.00025545,4]
[379237864,1755208235728,-150.0,0.00025545,4]
[379237865,1755208235738,-150.0,0.00025545,4]
[379237866,1755208235748,-150.0,0.00025545,4]
[379237867,1755208235757,-150.0,0.00025545,4]
[379237868,1755208235767,-150.0,0.00025545,4]
[379237869,1755208235777,-150.0,0.00025545,4]
[379237870,1755208235787,-150.0,0.00025565,4]
[379237871,1755208235797,-150.0,0.00025569,4]
[379237872,1755208235806,-16093.7130027,0.00025575,2]
[379237873,1755208235816,-561.7245156,0.00025599,2]
[379237874,1755208235826,-150.0,0.00025605,4]
[379237875,1755208235836,-150.0,0.0002561,4]
[379237876,1755208235846,-16093.7130027,0.00025612,2]
[379237877,1755208235856,-248.95,0.00025622,2]
[379237878,1755208235866,-150.0,0.00025623,4]
[379237879,1755208235875,-151.0,0.00025624,7]
[379237880,1755208235886,-151.0,0.00025624,7]
[379237881,1755208235896,-151.0,0.00025624,7]
[379237882,1755208235906,-16214.81832691,0.00025633,2]
[379237883,1755208235916,-150.0,0.00025636,4]
[379237884,1755208235928,-150.0,0.00025641,4]
[379237885,1755208235938,-150.0,0.00025647,4]
[379237886,1755208235949,-1148.3,0.00025647,3]
[379237887,1755208235959,-226.40485419,0.00025657,2]
[379237888,1755208235969,-150.0,0.00025659,4]
[379237889,1755208235979,-150.0,0.00025659,4]
[379237890,1755208235991,-157.65,0.00025662,2]
[379237891,1755208236002,-150.0,0.00025676,4]
[379237892,1755208236012,-150.0,0.00025676,4]
[379237893,1755208236022,-150.0,0.00025677,4]
[379237894,1755208236033,-150.0,0.00025681,4]
[379237895,1755208236043,-150.0,0.00025686,4]
[379237896,1755208236053,-1000.0,0.00025696,2]
[379237897,1755208236063,-16093.7130027,0.0002571,2]
[379237898,1755208236073,-605.6582766,0.00025712,2]
[379237899,1755208236084,-150.0,0.00025713,4]
[379237900,1755208236094,-150.0,0.00025728,4]
[379237901,1755208236104,-150.0,0.00025728,4]
[379237902,1755208236113,-251.90292739,0.00025729,2]
[379237903,1755208236123,-16093.7130027,0.0002573,2]
[379237904,1755208236133,-150.0,0.00025739,4]
[379237905,1755208236143,-7010.754294,0.0002574,7]
[379237906,1755208236153,-7010.754294,0.0002574,7]
[379237907,1755208236165,-438.514139,0.0002574,7]
[379237908,1755208236174,-438.514139,0.0002574,7]
[379237909,1755208236185,-151.0,0.0002574,7]
[379237910,1755208236195,-1912.279488,0.0002574,7]
[379237911,1755208236205,-399.179645,0.0002574,7]
[379237912,1755208236215,-399.179645,0.0002574,7]
[379237913,1755208236224,-1912.279488,0.0002574,7]
[379237914,1755208236234,-428.3763,0.0002574,7]
[379237915,1755208236243,-428.3763,0.0002574,7]
[379237916,1755208236253,-200.861221,0.0002574,7]
[379237917,1755208236263,-200.861221,0.0002574,7]
[379237918,1755208236273,-316.107094,0.0002574,7]
[379237919,1755208236282,-316.107094,0.0002574,7]
[379237920,1755208236291,-968.492603,0.0002574,7]
[379237921,1755208236301,-968.492603,0.0002574,7]
[379237922,1755208236311,-314.81816,0.0002574,7]
[379237923,1755208236320,-314.81816,0.0002574,7]
[379237924,1755208236330,-150.0,0.00025748,4]
[379237925,1755208236339,-150.0,0.00025749,4]
[379237926,1755208236349,-150.88,0.00025753,2]
[379237927,1755208236358,-14419.4319963,0.00025755,2]
[379237928,1755208236368,-11547.29940262,0.00025758,2]
[379237929,1755208236377,-16093.7130027,0.00025766,2]
[379237930,1755208236387,-150.0,0.00025773,4]
[379237931,1755208236396,-16093.7130027,0.00025776,2]
[379237932,1755208236405,-28838.8639925,0.00025776,2]
[379237933,1755208236414,-150.0,0.00025785,4]
[379237934,1755208236424,-640.291288,0.00025786,7]
[379237935,1755208236433,-640.291288,0.00025786,7]
[379237936,1755208236443,-207.018338,0.00025786,7]
[379237937,1755208236452,-207.018338,0.00025786,7]
[379237938,1755208236462,-150.0,0.00025798,4]
[379237939,1755208236471,-150.0,0.00025806,4]
[379237940,1755208236481,-150.0,0.00025806,4]
[379237941,1755208236491,-150.0,0.00025806,4]
[379237942,1755208236500,-14419.4319963,0.00025814,2]
[379237943,1755208236510,-16093.7130027,0.00025817,2]
[379237944,1755208236520,-150.0,0.00025819,4]
[379237945,1755208236529,-150.0,0.00025821,4]
[379237946,1755208236539,-649.59203759,0.00025824,2]
[379237947,1755208236549,-150.0,0.0002583,4]
[379237948,1755208236558,-150.0,0.00025849,4]
[379237949,1755208236568,-150.0,0.00025856,4]
[379237950,1755208236578,-150.0,0.00025857,4]
[379237951,1755208236588,-151.0,0.00025859,2]
[379237952,1755208236598,-283.5388254,0.00025859,2]
[379237953,1755208236608,-600.0,0.00025859,2]
[379237954,1755208236618,-1000.0,0.00025868,2]
[379237955,1755208236628,-150.0,0.00025887,4]
[379237956,1755208236638,-170.0,0.0002589,7]
[379237957,1755208236648,-150.0,0.00025893,4]
[379237958,1755208236657,-150.0,0.00025896,4]
[379237959,1755208236667,-1200.0,0.000259,9]
[379237960,1755208236676,-1000.0,0.000259,2]
[379237961,1755208236686,-300.0,0.00025904,2]
[379237962,1755208236696,-150.0,0.0002591,4]
[379237963,1755208236707,-150.0,0.0002591,4]
[379237964,1755208236717,-150.0,0.00025914,4]
[379237965,1755208236726,-177.34,0.00025914,2]
[379237966,1755208236736,-150.0,0.00025929,4]
[379237967,1755208236746,-150.0,0.00025936,4]
[379237968,1755208236756,-150.0,0.00025936,4]
[379237969,1755208236766,-693.52579859,0.00025937,2]
[379237970,1755208236776,-150.0,0.00025951,4]
[379237971,1755208236787,-150.0,0.00025965,4]
[379237972,1755208236797,-150.0,0.00025972,4]
[379237973,1755208236807,-251.90292739,0.00025973,2]
[379237974,1755208236816,-14419.4319963,0.00025984,2]
[379237975,1755208236826,-226.40485419,0.00025985,2]
[379237976,1755208236836,-172.05,0.0002599,2]
[379237977,1755208236846,-385.06297372,0.0002599,2]
[379237978,1755208236855,-385.06297372,0.0002599,2]
[379237979,1755208236865,-16093.7130027,0.00025991,2]
[379237980,1755208236874,-11547.29940262,0.00025994,2]
[379237981,1755208236883,-1498.0,0.00026,2]
[379237982,1755208236892,-350551.14533207,0.00026,3]
[379237986,1755208238317,-152.01901498,0.00024829,2]
[379237987,1755208238326,-347.53748366,0.00026,3]
[379237990,1755208238337,-927.61514,0.00026,3]
[379237991,1755208238349,-72547.77674583,0.00026,3]
[379237992,1755208238368,-432.86387566,0.00024829,2]
[379237993,1755208238377,-1478.28166492,0.00026,3]
[379237994,1755208238518,-2435.08410106,0.00026,3]
[379237995,1755208238551,-595.84593004,0.00026,3]
[379237996,1755208238562,-2174.65779542,0.00026,3]
[379237997,1755208238679,-109287.95864083,0.00026,3]
[379237998,1755208238691,-591.348914,0.00026,3]
[379237999,1755208238703,-2530.23999999,0.00026,3]
[379238000,1755208238715,-984.06799179,0.00026,3]
[379238001,1755208241449,-1000.0,0.00023954,2]
[379238002,1755208241459,-412.1712819,0.00025612,2]
[379238003,1755208241616,-4310.73655828,0.00025612,2]
[379238004,1755208241625,-9096.26344118,0.00026,3]
[379238005,1755208241661,-394.53414,0.00026,3]
[379238006,1755208241673,-1139.23809932,0.00026,3]
[379238007,1755208242226,-4722.90784018,0.00025838,2]
[379238008,1755208242236,-1767748.93306802,0.00026,3]
[379238009,1755208242258,-977.93325197,0.00026,3]
[379238010,1755208242270,-5640.0,0.00026,3]
[379238011,1755208242282,-2700.08737463,0.00026,3]
[379238013,1755208242809,-21926.95800108,0.00026,3]
[379238014,1755208242837,-54381.7173256,0.00026,3]
[379238024,1755208244868,-0.00255703,0.00026,3]
[379238056,1755208246470,-262.73829438,0.00025443,2]
[379238057,1755208246480,-468.3,0.00025479,2]
[379238058,1755208246489,-150.0,0.00025753,2]
[379238059,1755208246498,-127.85703583,0.00026,3]
[379238060,1755208246509,-470.87859331,0.00026,3]
[379238061,1755208246520,-1877.79238116,0.00026,3]
[379238062,1755208246638,-105173.59646497,0.00026,3]
[379238063,1755208247565,-1166.3618975,0.00026,3]
[379238064,1755208247576,-3973.97103057,0.00026,3]
[379238065,1755208247588,-1174.9,0.00026,3]
[379238066,1755208247639,-1882.46795726,0.00026,3]
[379238067,1755208247711,-695.46460767,0.00026,3]
[379238068,1755208247796,-804.65,0.00026,3]
[379238069,1755208247807,-957.0,0.00026,3]
[379238070,1755208302280,1447.0,0.0003013,120]
[379238071,1755208370859,253.0,0.0003013,120]
[379238073,1755208456925,182.89,0.00013699,2]
[379238074,1755208498283,2617.11,0.00013688,2]
[379238075,1755208498312,21282.89,0.00013688,2]
[379238078,1755208509266,-182.89,0.00020187,2]
[379238079,1755208786613,17500.0,0.00026,30]
[379238080,1755208981681,98000.0,0.00026,30]
[379238081,1755208999949,301.593063,0.0001993,2]
[379238082,1755209031634,543.23,0.00024685,30]
[379238083,1755209088140,242.27,0.00026723,120]
[379238084,1755209088391,242.27,0.00029692,120]
[379238085,1755209198448,96391.66416343,0.000195,5]
[379238086,1755209208441,527.8876915,0.00030137,120]
[379238087,1755209283033,178233.0,0.00026,30]
[379238093,1755209401316,166.0,0.00030137,120]
[379238094,1755209418786,50000.0,0.00018108,2]
[379238104,1755209432383,-151.0,0.00020131,2]
[379238105,1755209432394,-151.0,0.00020131,2]
[379238106,1755209432404,-300.0,0.00020132,2]
[379238107,1755209432413,-384.62018692,0.00020132,2]
[379238108,1755209432459,-815.37981308,0.00020132,2]
[379238109,1755209432469,-300.0,0.00020132,2]
[379238110,1755209432478,-31500.0,0.00020133,2]
[379238111,1755209432487,-1100.0,0.00020142,2]
[379238112,1755209432496,-162.45,0.00021108,2]
[379238113,1755209432506,-500.0,0.00021129,2]
[379238114,1755209432516,-156.74688272,0.000212,2]
[379238115,1755209432525,-420.0,0.00021919,2]
[379238116,1755209432535,-420.0,0.00021919,2]
[379238117,1755209432544,-4900.0,0.00022,2]
[379238118,1755209432554,-1680.0,0.00022024,2]
[379238119,1755209432563,-2500.0,0.00022145,2]
[379238120,1755209432572,-304.73,0.00022477,2]
[379238121,1755209432581,-300.4,0.00022477,2]
[379238122,1755209432591,-347.11,0.00023414,2]
[379238123,1755209432611,-500.0,0.00023414,2]
[379238124,1755209432627,-5488.01,0.00023562,7]
[379238125,1755209432638,-169.78,0.00023726,2]
[379238126,1755209432647,-407.25,0.00023753,2]
[379238127,1755209432656,-242.27,0.00023754,2]
[379238128,1755209432667,-200.0,0.00023807,2]
[379238129,1755209432676,-150.0,0.0002381,2]
[379238130,1755209432685,-150.0,0.0002383,2]
[379238131,1755209432695,-2956.94,0.00023848,2]
[379238132,1755209432705,-1000.0,0.00023848,2]
[379238133,1755209432714,-170.0,0.00023848,7]
[379238134,1755209432724,-250.0,0.00023848,2]
[379238135,1755209432733,-335.0,0.00023864,2]
[379238136,1755209432742,-245.41701112,0.00023918,2]
[379238137,1755209432752,-237.0,0.00023989,3]
[379238138,1755209432761,-287.83476613,0.00024027,2]
[379238139,1755209432770,-2351.0,0.00024093,2]
[379238140,1755209432779,-330.25252114,0.00024135,2]
[379238141,1755209432789,-372.67027615,0.00024244,2]
[379238142,1755209432798,-884.09,0.00024277,2]
[379238143,1755209432807,-884.09,0.0002429,2]
[379238144,1755209432817,-884.09,0.00024302,2]
[379238145,1755209432827,-884.09,0.00024315,2]
[379238146,1755209432836,-884.09,0.00024328,2]
[379238147,1755209432845,-884.09,0.00024341,2]
[379238148,1755209432855,-415.08803116,0.00024352,2]
[379238149,1755209432866,-884.09,0.00024354,2]
[379238150,1755209432878,-884.09,0.00024366,2]
[379238151,1755209432887,-884.09,0.00024379,2]
[379238152,1755209432897,-884.09,0.00024392,2]
[379238153,1755209432906,-884.09,0.00024405,2]
[379238154,1755209432915,-884.09,0.00024417,2]
[379238155,1755209432924,-884.09,0.0002443,2]
[379238156,1755209432933,-884.09,0.00024443,2]
[379238157,1755209432942,-884.09,0.00024456,2]
[379238158,1755209432952,-457.50578617,0.00024461,2]
[379238159,1755209432961,-884.09,0.00024468,2]
[379238160,1755209432970,-884.09,0.00024481,2]
[379238161,1755209432979,-884.09,0.00024494,2]
[379238162,1755209432988,-884.09,0.00024507,2]
[379238163,1755209432997,-884.09,0.00024519,2]
[379238164,1755209433007,-936.6,0.00024521,2]
[379238165,1755209433016,-499.92354118,0.00024569,2]
[379238166,1755209433026,-172.28,0.00024586,2]
[379238167,1755209433036,-542.34129619,0.00024677,2]
[379238168,1755209433046,-1000.0,0.00024698,2]
[379238169,1755209433055,-462.705023,0.00024714,7]
[379238170,1755209433065,-462.705023,0.00024714,7]
[379238171,1755209433075,-150.0,0.00024755,2]
[379238172,1755209433084,-584.7590512,0.00024786,2]
[379238173,1755209433094,-462.705023,0.000248,7]
[379238174,1755209433104,-462.705023,0.000248,7]
[379238175,1755209433114,-3599.58485441,0.00024802,2]
[379238176,1755209433124,-500.0,0.00024851,2]
[379238177,1755209433134,-627.17680621,0.00024894,2]
[379238178,1755209433143,-462.705023,0.000249,7]
[379238179,1755209433153,-462.705023,0.000249,7]
[379238180,1755209433163,-1439.0,0.000249,2]
[379238181,1755209433172,-10335.63133868,0.000249,2]
[379238182,1755209433305,-1533.782255,0.000249,2]
[379238186,1755209435884,-5000000.0,0.00038746,30]
[379238191,1755209438238,-4749.67748905,0.000249,2]
[379238192,1755209438248,-150.0,0.00024902,2]
[379238193,1755209438258,-1010.11851096,0.00024924,2]
[379238209,1755209441154,-2589.46634343,0.00024924,2]
[379238210,1755209441165,-500.0,0.00024932,2]
[379238211,1755209441175,-500.0,0.00024932,2]
[379238212,1755209441186,-150.0,0.00024932,2]
[379238213,1755209441195,-150.0,0.00024932,2]
[379238214,1755209441204,-407.25,0.00024941,2]
[379238215,1755209441214,-303.00471296,0.00024979,2]
[379238216,1755209441223,-150.99,0.0002498,2]
[379238217,1755209441233,-150.99,0.0002498,2]
[379238218,1755209441243,-8753.59,0.0002498,2]
[379238219,1755209441252,-2198.21,0.0002498,2]
[379238220,1755209441261,-10677.53,0.0002498,2]
[379238221,1755209441271,-1498.53,0.0002498,2]
[379238222,1755209441299,-9999.99,0.0002498,2]
[379238223,1755209441309,-134090.43,0.0002498,2]
[379238224,1755209441322,-289.37,0.0002498,2]
[379238225,1755209441332,-1150.74,0.0002498,2]
[379238226,1755209441341,-150.0,0.00024997,2]
[379238227,1755209441352,-170.0,0.00025,7]
[379238228,1755209441361,-669.59456121,0.00025003,2]
[379238229,1755209441371,-150.0,0.00025046,2]
[379238230,1755209441380,-3599.58485439,0.00025046,2]
[379238231,1755209441390,-150.0,0.00025082,2]
[379238232,1755209441399,-150.0,0.00025082,2]
[379238233,1755209441409,-250.0,0.00025106,2]
[379238234,1755209441418,-712.01231622,0.00025111,2]
[379238235,1755209441428,-150.0,0.00025114,2]
[379238236,1755209441437,-800.12536799,0.00025163,2]
[379238237,1755209441446,-150.0,0.00025165,2]
[379238238,1755209441455,-3599.58485439,0.00025168,2]
[379238239,1755209441465,-468.3,0.00025219,2]
[379238240,1755209441475,-845.98,0.00025219,2]
[379238241,1755209441485,-468.3,0.00025219,2]
[379238242,1755209441496,-468.3,0.00025219,2]
[379238243,1755209441507,-468.3,0.00025219,2]
[379238244,1755209441518,-754.43007123,0.0002522,2]
[379238245,1755209441527,-800.12536799,0.00025247,2]
[379238246,1755209441538,-3599.58485439,0.0002529,2]
[379238247,1755209441549,-150.0,0.00025297,2]
[379238248,1755209441558,-1000.0,0.000253,2]
[379238249,1755209441568,-150.0,0.00025323,2]
[379238250,1755209441578,-796.84782624,0.00025328,2]
[379238251,1755209441587,-150.0,0.0002533,2]
[379238252,1755209441598,-300.0,0.00025342,2]
[379238253,1755209441607,-600.0,0.00025342,2]
[379238254,1755209441619,-160.0,0.00025342,2]
[379238255,1755209441630,-3000.0,0.00025342,2]
[379238256,1755209441641,-277.35679052,0.00025342,2]
[379238257,1755209441651,-151.0,0.00025342,2]
[379238258,1755209441661,-150.0,0.00025349,2]
[379238259,1755209441671,-1000.0,0.00025356,2]
[379238260,1755209441682,-1000.0,0.00025372,2]
[379238261,1755209441692,-1200.0,0.000254,9]
[379238262,1755209441702,-3599.58485439,0.00025412,2]
[379238263,1755209441711,-839.26558125,0.00025437,2]
[379238264,1755209441722,-1000.0,0.00025469,2]
[379238265,1755209441732,-2500.0,0.000255,9]
[379238266,1755209441742,-2809.0,0.00025504,2]
[379238267,1755209441752,-150.0,0.00025504,2]
[379238268,1755209441762,-1058.5,0.00025508,2]
[379238269,1755209441774,-150.0,0.00025512,2]
[379238270,1755209442168,-3599.58485439,0.00025534,2]
[379238271,1755209442187,-150.0,0.00025536,2]
[379238272,1755209442196,-881.68333626,0.00025545,2]
[379238273,1755209442206,-1000.0,0.00025585,2]
[379238274,1755209442216,-150.0,0.00025599,2]
[379238275,1755209442226,-3800.0,0.000256,9]
[379238276,1755209442236,-1000.0,0.000256,2]
[379238277,1755209442245,-800.125368,0.00025619,2]
[379238278,1755209442255,-1000.0,0.00025627,2]
[379238279,1755209442264,-2500.0,0.0002564,2]
[379238280,1755209442274,-924.10109127,0.00025653,2]
[379238281,1755209442283,-3599.58485439,0.00025656,2]
[379238282,1755209442293,-8256.36949818,0.00025686,2]
[379238283,1755209442302,-150.0,0.00025696,2]
[379238284,1755209442312,-5100.0,0.000257,9]
[379238285,1755209442327,-1000.0,0.000257,2]
[379238286,1755209442337,-8256.36949814,0.0002571,2]
[379238287,1755209442347,-185.22,0.00025711,2]
[379238288,1755209442358,-8256.36949814,0.00025734,2]
[379238289,1755209442367,-247.25862102,0.00025734,2]
[379238290,1755209442376,-1000.0,0.00025735,2]
[379238291,1755209442385,-462.705023,0.0002574,7]
[379238292,1755209442397,-462.705023,0.0002574,7]
[379238293,1755209442407,-103237.53725022,0.0002574,2]
[379238294,1755209442416,-458.13769775,0.0002574,7]
[379238295,1755209442425,-211.86673127,0.0002574,7]
[379238296,1755209442435,-160.0,0.0002574,7]
[379238297,1755209442444,-8256.36949814,0.00025757,2]
[379238298,1755209442454,-966.51884628,0.00025762,2]
[379238299,1755209442464,-3599.58485439,0.00025778,2]
[379238300,1755209442473,-8256.36949814,0.00025781,2]
[379238301,1755209442482,-158.46943863,0.0002579,2]
[379238302,1755209442491,-458.13769775,0.0002579,10]
[379238303,1755209442500,-211.86673127,0.0002579,10]
[379238304,1755209442510,-1000.0,0.0002579,2]
[379238305,1755209442519,-6400.0,0.000258,9]
[379238306,1755209442529,-150.0,0.00025804,2]
[379238307,1755209442539,-8256.36949814,0.00025805,2]
[379238308,1755209442548,-150.0,0.00025814,2]
[379238309,1755209442557,-8256.36949814,0.00025829,2]
[379238310,1755209442567,-1410.0,0.0002583,2]
[379238311,1755209442578,-207.47,0.00025831,2]
[379238312,1755209442587,-150.0,0.00025833,2]
[379238313,1755209442596,-196.5,0.0002584,2]
[379238314,1755209442606,-168.0,0.00025842,2]
[379238315,1755209442615,-1000.0,0.0002585,2]
[379238316,1755209442624,-8256.36949814,0.00025852,2]
[379238317,1755209442633,-7000.0,0.0002586,2]
[379238318,1755209442642,-500.0,0.00025862,2]
[379238319,1755209442655,-1008.9366013,0.0002587,2]
[379238320,1755209442664,-8256.36949814,0.00025876,2]
[379238321,1755209442674,-1000.0,0.00025877,2]
[379238322,1755209442683,-7000.0,0.0002588,2]
[379238323,1755209442692,-1038.68510857,0.00025884,2]
[379238324,1755209442702,-3999.99,0.00025888,2]
[379238325,1755209442711,-1052.61,0.00025889,3]
[379238326,1755209442720,-34532.0512,0.0002589,2]
[379238327,1755209442730,-190310.13,0.0002589,2]
[379238328,1755209442739,-1500.0,0.0002589,2]
[379238329,1755209442748,-1000.0,0.0002589,2]
[379238330,1755209442757,-600.0,0.0002589,2]
[379238331,1755209442766,-151.0,0.0002589,2]
[379238332,1755209442775,-170.0,0.0002589,7]
[379238333,1755209442784,-3558.4704999,0.00025896,2]
[379238334,1755209442794,-2500.0,0.000259,2]
[379238335,1755209442804,-156.00898604,0.000259,2]
[379238336,1755209442813,-5000.0,0.000259,2]
[379238337,1755209442824,-1200.0,0.000259,9]
[379238338,1755209442833,-8256.36949814,0.000259,2]
[379238339,1755209442843,-3599.58485439,0.000259,2]
[379238340,1755209442852,-2877.11072212,0.000259,2]
[379238341,1755209442862,-164.06346403,0.000259,2]
[379238342,1755209442873,-488.52068234,0.000259,4]
[379238343,1755209442882,-1616.49491495,0.000259,2]
[379238344,1755209442892,-312.16,0.00025904,2]
[379238345,1755209442901,-1000.0,0.0002591,2]
[379238347,1755209442910,-150.0,0.0002594,2]
[379238349,1755209442920,-150.0,0.00025961,2]
[379238350,1755209442930,-500.0,0.00025973,2]
[379238351,1755209442939,-500.0,0.00025973,2]
[379238352,1755209442948,-500.0,0.00025973,2]
[379238353,1755209442957,-219.71012623,0.00025973,2]
[379238354,1755209442967,-572.49417322,0.00025973,2]
[379238355,1755209442976,-500.0,0.00025973,2]
[379238356,1755209442985,-500.0,0.00025973,2]
[379238357,1755209442994,-500.0,0.00025973,2]
[379238358,1755209443003,-500.0,0.00025973,2]
[379238359,1755209443013,-500.0,0.00025973,2]
[379238360,1755209443022,-500.0,0.00025973,2]
[379238361,1755209443032,-500.0,0.00025973,2]
[379238363,1755209443041,-500.0,0.00025973,2]
[379238364,1755209443051,-500.0,0.00025973,2]
[379238365,1755209443060,-168.26151672,0.00025973,2]
[379238366,1755209443070,-500.0,0.00025973,2]
[379238367,1755209443079,-502.65686821,0.00025973,2]
[379238368,1755209443089,-500.0,0.00025973,2]
[379238369,1755209443099,-169.06141551,0.00025973,2]
[379238370,1755209443109,-500.0,0.00025973,2]
[379238371,1755209443119,-500.0,0.00025973,2]
[379238372,1755209443128,-323.90526316,0.00025973,2]
[379238373,1755209443138,-500.0,0.00025973,2]
[379238374,1755209443148,-500.0,0.00025973,2]
[379238375,1755209443157,-502.78091185,0.00025973,2]
[379238376,1755209443166,-500.0,0.00025973,2]
[379238377,1755209443175,-500.0,0.00025973,2]
[379238378,1755209443184,-500.0,0.00025973,2]
[379238379,1755209443193,-500.0,0.00025973,2]
[379238380,1755209443202,-500.0,0.00025973,2]
[379238381,1755209443212,-500.0,0.00025973,2]
[379238382,1755209443221,-529.61775295,0.00025973,2]
[379238383,1755209443230,-500.0,0.00025973,2]
[379238384,1755209443240,-506.49765689,0.00025973,2]
[379238385,1755209443250,-500.0,0.00025973,2]
[379238386,1755209443260,-500.0,0.00025973,2]
[379238387,1755209443269,-502.9880039,0.00025973,2]
[379238388,1755209443278,-502.91827005,0.00025973,2]
[379238389,1755209443287,-500.0,0.00025973,2]
[379238390,1755209443297,-150.0,0.00025973,2]
[379238391,1755209443306,-151.0,0.00025974,2]
[379238392,1755209443317,-59133.45366443,0.00025984,2]
[379238393,1755209443328,-192.53148686,0.00025984,2]
[379238394,1755209443337,-151.0,0.00025984,7]
[379238395,1755209443347,-284.046234,0.00025984,7]
[379238396,1755209443359,-284.046234,0.00025984,7]
[379238397,1755209443368,-1523.682425,0.00025984,7]
[379238398,1755209443378,-1523.682425,0.00025984,7]
[379238399,1755209443387,-151.0,0.00025984,7]
[379238400,1755209443398,-151.0,0.00025984,7]
[379238401,1755209443407,-151.0,0.00025984,2]
[379238402,1755209443418,-601.866389,0.00025984,7]
[379238403,1755209443429,-601.866389,0.00025984,7]
[379238404,1755209443439,-803.77673706,0.0002599,2]
[379238405,1755209443448,-1021.89678735,0.0002599,2]
[379238406,1755209443458,-150.0,0.00025991,2]
[379238407,1755209443468,-300.0,0.00025993,10]